Workbook

Sheet Vstupní parametry a výsledky
A1: 1. Parametry okysličovadla | G1: Výsledky
A2: Teplota okolního vzduchu | B2: Tvz | C2: 20 | D2: °C | G2: Průtok vzduchu | H2: Qvz | I2: ='Spalovací proces'!C28 -> 275.8414156 | J2: mN3/h
A3: Tlak vzduchu za dmychadlem | B3: pvz | C3: 98.58 | D3: kPa | G3: Průtok spalin | H3: Qspal | I3: ='Spalovací proces'!C39 -> 290.6401506 | J3: mN3/h
A4: Relativní vlhkost okolí | B4: ϕ | C4: 50 | D4: % | G4: Výkon hořáku | H4: PH | I4: ='Spalovací proces'!C55 -> 147.2875601 | J4: kW
I5: =I4/150*100 -> 98.19170676 | J5: %
A7: 2. Uživatelské parametry
A8: Požadovaná teplota | B8: Tpož | C8: 900 | D8: °C | G8: Inicializační hodnoty
A9: Přebytek okysličovadla | B9: α | C9: 1.934364303 | D9: [-] | G9: Odhadnutý průtok ZP | H9: QZP_X | I9: =Inicializace!E9 -> 14.78197111 | J9: mN3/h
A10: Přebytek O2 ve spalinách | B10: O2 | C10: 10 | D10: % | G10: Odhadnutý průtok vzduchu | H10: Qvz | I10: =Inicializace!D23 -> 275.8414156 | J10: mN3/h
G11: Otáčky dmychadla vzduchu | H11: nvz | I11: =Inicializace!D27 -> 99.98699685 | J11: %
A13: 3. Palivo
A14: Hmotnostní průtok paliva | B14: Qm_pal | C14: 10.79083891 | D14: kg/h | G14: Kontrolní hodnoty
A15: Objemový průtok paliva | B15: Qpal | C15: 14.78197111 | D15: mN3/h | G15: α z Množství O2 ve spalinách | H15: α | I15: ='Spalovací proces'!C51 -> 1.934364303 | J15: [-]
G16: Množství O2 ve spalinách z α | H16: O2 | I16: ='Spalovací proces'!C50 -> 10 | J16: %
G17: Průtok paliva z teploty | H17: QZP_teor. | I17: =Inicializace!E5 -> 11.37074701 | J17: mN3/h

Sheet Inicializace
B2: Průtok zemního plynu v závislosti na teplotě
B3: T | C3: QZP | D3: Tpož | E3: QZP_teor.
B4: °C | C4: mN3/h | D4: °C | E4: mN3/h
B5: 0 | C5: 0 | D5: ='Vstupní parametry a výsledky'!C8 -> 900 | E5: =B19*D5^3+C19*D5^2+D19*D5^1+E19*D5^0 -> 11.37074701
B6: 100 | C6: 0.81
B7: 200 | C7: 1.74 | D7: X | E7: QZP_X
B8: 300 | C8: 2.79 | D8: [%] | E8: mN3/h
B9: 400 | C9: 3.96 | D9: 30 | E9: =E5*(1+D9/100) -> 14.78197111 | F9: ='Vstupní parametry a výsledky'!C15*'Spalovací proces'!C3-'Vstupní parametry a výsledky'!I9*'Spalovací proces'!C3 -> 0
B10: 500 | C10: 5.25
B11: 550 | C11: 5.8
B12: 600 | C12: 6.66
B13: 680 | C13: 7.7
B14: 700 | C14: 8.19
B15: 800 | C15: 9.84
B16: 900 | C16: 11.3
B17: Lineární regrese
B18: k1 | C18: k2 | D18: k3 | E18: k4
B19: =LINEST(C5:C16,B5:B16^{1,2,3}) -> -1.233519564e-09 | C19: 7.183446737e-06 | D19: 0.007150526748 | E19: 0.01591684032
C22: Požadovaný průtok vzduchu pro QZP_X
C23: Qvz_inic | D23: =E9*'Spalovací proces'!C27*'Vstupní parametry a výsledky'!C9 -> 275.8414156 | E23: mN3/h
C25: Odhadnuté otáčky z výkonové křivky
C26: nvz_inic | D26: =D23/'Výkonové křivky - vzduch'!I14*'Výkonové křivky - vzduch'!C5 -> 2849.62941 | E26: min-1
D27: =D26/'Výkonové křivky - vzduch'!C5*100 -> 99.98699685 | E27: %

Sheet Spalovací proces
A1: Parametry vstupující do výpočtu | F1: Složení suchého vzduchu | I1: Složení vlhkého vzduchu | L1: Složení zemního plynu | O1: Vlastnosti složek | W1: Stechiometrické výpočty
A2: Hustota ZP | B2: ρZP | C2: 0.73 | D2: kg/m3 | F2: Dle mezinárodní atmosféry | I2: Složka | J2: Koncentrace | L2: Tranzitní ZP | O2: složka | P2: Počet uhlíků | Q2: Počet vodíků | R2: spotřeba O2 | S2: tvorba CO2 | T2: tvorba H2O | U2: tvorba N2 | W2: složka | X2: Minimální spotřeba kyslíku | Y2: Koncentrace CO2 ve spalinách | Z2: Koncentrace N2 ve spalinách | AA2: Koncentrace H2O ve spalinách
A3: Hustota vzduchu | B3: ρVZ | C3: 1.2921 | D3: kg/m3 | F3: Složka | G3: Koncentrace | I3: i | J3: [% objemu] | L3: Složka | M3: Koncentrace | O3: i | P3: x | Q3: y | R3: mol/mol | S3: mol/mol | T3: mol/mol | U3: mol/mol | W3: i | X3: VO2min [mN3/mN3ZP]
A4: Molární objem | B4: M | C4: 22.414 | D4: m3/kmol | F4: i | G4: [% objemu] | I4: N2 | J4: =G5*(1-$C$19/100) -> 77.1673216 | L4: i | M4: [% objemu] | O4: CH4 | P4: 1 | Q4: 4 | R4: 2 | S4: 1 | T4: 2 | U4: 0 | W4: CH4 | X4: =0.9995*(R4)*M5/100 -> 1.9668161 | Y4: =0.994*S4*M5/100 -> 0.9779966 | Z4: =U4*M5/100 -> 0 | AA4: =M5/100*T4 -> 1.9678
A5: Při 0 °C a 101325 Pa | F5: N2 | G5: 78.09 | I5: O2 | J5: =G6*(1-$C$19/100) -> 20.70246366 | L5: CH4 | M5: 98.39 | O5: C2H6 | P5: 2 | Q5: 6 | R5: 3.5 | S5: 2 | T5: 3 | U5: 0 | W5: C2H6 | X5: 0.0153923 | Y5: 0.0087472 | Z5: 0 | AA5: 0.0132
F6: O2 | G6: 20.95 | I6: Ar | J6: =G7*(1-$C$19/100) -> 0.9190115134 | L6: C2H6 | M6: 0.44 | O6: C3H8 | P6: 3 | Q6: 8 | R6: 5 | S6: 3 | T6: 4 | U6: 0 | W6: C3H8 | X6: 0.007996 | Y6: 0.0047712 | Z6: 0 | AA6: 0.0064
F7: Ar | G7: 0.93 | I7: CO2 | J7: =G8*(1-$C$19/100) -> 0.02964553269 | L7: C3H8 | M7: 0.16 | O7: C4H10 | P7: 4 | Q7: 10 | R7: 6.5 | S7: 4 | T7: 5 | U7: 0 | W7: C4H10 | X7: 0.004547725 | Y7: 0.0027832 | Z7: 0 | AA7: 0.0035
A8: Parametry ze zadání | F8: CO2 | G8: 0.03 | I8: H2O | J8: =C19 -> 1.181557695 | L8: C4H10 | M8: 0.07 | O8: C5H12 | P8: 5 | Q8: 12 | R8: 8 | S8: 5 | T8: 6 | U8: 0 | W8: C5H12 | X8: 0.0023988 | Y8: 0.001491 | Z8: 0 | AA8: 0.0018
A9: Teplota vzduchu | B9: tvz | C9: ='Vstupní parametry a výsledky'!C2 -> 20 | D9: °C | F9: Suma | G9: =SUM(G5:G8) -> 100 | I9: Suma | J9: =SUM(J4:J8) -> 100 | L9: C5H12 | M9: 0.03 | O9: N2 | P9: 0 | Q9: 0 | R9: 0 | S9: 0 | T9: 0 | U9: 1 | W9: N2 | X9: 0 | Y9: 0 | Z9: 0.0084 | AA9: 0
A10: Tlak vzduchu | B10: pvz | C10: ='Vstupní parametry a výsledky'!C3 -> 98.58 | D10: kPa | L10: N2 | M10: 0.84 | O10: CO2 | P10: 1 | Q10: 0 | R10: 0 | S10: 1 | T10: 0 | U10: 0 | W10: CO2 | X10: 0 | Y10: 0.0006958 | Z10: 0 | AA10: 0
A11: Relativní vlhkost | B11: ϕ | C11: ='Vstupní parametry a výsledky'!C4 -> 50 | D11: % | L11: CO2 | M11: 0.07 | W11: Celkem | X11: =SUM(X4:X8) -> 1.997150925 | Y11: =SUM(Y4:Y10) -> 0.996485 | Z11: =SUM(Z4:Z10) -> 0.0084 | AA11: =SUM(AA4:AA10) -> 1.9927
A12: Alfa | B12: α | C12: ='Vstupní parametry a výsledky'!C9 -> 1.934364303 | D12: [ - ] | L12: H2O | M12: 0
A13: Průtok ZP | B13: QZP | C13: ='Vstupní parametry a výsledky'!C15 -> 14.78197111 | D13: mN3/h | F13: hmotnostní průtok | G13: =C13*C2 -> 10.79083891 | H13: =G13-'Vstupní parametry a výsledky'!C14 -> 0 | L13: O2 | M13: 0
F14: objemový průtok | G14: =C13 -> 14.78197111 | H14: =G14-'Vstupní parametry a výsledky'!C15 -> 0
A16: Výpočet koncentrace vody
A17: Tlak nasycených par | B17: p'' | C17: =10^(7.19621-1730.63/(233.426+C9)) -> 2.329559152 | D17: kPa
A18: Parciální tlak vody | B18: pH2O | C18: =C17*C11/100 -> 1.164779576 | D18: kPa
A19: Koncentrace vody | B19: ωH2O | C19: =C18/C10*100 -> 1.181557695 | D19: % objemu
A20: Objem vodní páry | B20: VH2O | C20: =C11/100*(C17/(C10-(C11/100)*C17)) -> 0.01195685408 | D20: mN3/mN3ZP
A21: Faktor zvýšení objemu vzduchu | B21: f | C21: =1+C20 -> 1.011956854 | D21: [ - ]
A24: Výpočet spotřeby okysličovadla
A25: Minimální spotřeba kyslíku | B25: VO2min | C25: =X11 -> 1.997150925 | D25: mN3/mN3ZP | E25: stechiometricky
A26: Min. množství suchého vzduchu | B26: VvzSmin | C26: =100/G6*C25 -> 9.532939976 | D26: mN3/mN3ZP
A27: Min. množství vlhkého vzduchu | B27: VvzVmin | C27: =C26*C21 -> 9.646923948 | D27: mN3/mN3ZP
A28: Průtok vlhkého vzduchu včetně alfa | B28: VvzV | C28: =C27*C12*C13 -> 275.8414156 | D28: mN3/h | E28: včetně alfa
A31: Výpočet množství spalin
A32: Množství CO2 | B32: VCO2 | C32: =$Y$11+$G$8/100*C26+M11/100 -> 1.000044882 | D32: mN3/mN3ZP | E32: stechiometricky
A33: Množství N2 | B33: VN2 | C33: =Z11+G5/100*C26 -> 7.452672827 | D33: mN3/mN3ZP
A34: Množství Ar | B34: VAr | C34: =G7/100*C26 -> 0.08865634178 | D34: mN3/mN3ZP
A35: Min. množství suchých spalin | B35: VsSmin | C35: =SUM(C32:C34) -> 8.541374051 | D35: mN3/mN3ZP
A36: Množství H2O | B36: VH2O | C36: =AA11+(C21-1)*C26 -> 2.106683972 | D36: mN3/mN3ZP
A37: Min. množství vlhkých spalin | B37: VsVmin | C37: =C35+C36 -> 10.64805802 | D37: mN3/mN3ZP
A38: Množství vlhkých spalin včetně alfa | B38: VsV | C38: =(C37+(C12-1)*C27) -> 19.66179939 | D38: mN3/mN3ZP | E38: včetně alfa
A39: Průtok spalin včetně alfa | B39: QsV | C39: =(C37+(C12-1)*C27)*C13 -> 290.6401506 | D39: mN3/h
A41: Hustota spalin
A42: Ar | B42: ρAr | C42: 1.782385294 | D42: kg/m3 | E42: Pro normální fyzikální podmínky
A43: N2 | B43: ρN2 | C43: 1.249663211 | D43: kg/m3
A44: CO2 | B44: ρCO2 | C44: 1.963529682 | D44: kg/m3
A45: Vodní pára | B45: ρH2O | C45: 0.8039662494 | D45: kg/m3
A46: Spaliny | B46: ρs | C46: =((C32*C44+C33*C43+C34*C42+C36*C45)+(C12-1)*C27*C3)/(C37+(C12-1)*C27) -> 1.260074226 | D46: kg/m3 | E46: Včetně alfa
A49: Určení O2 ve spalinách
A50: Množství O2 ve spalinách | B50: O2 | C50: =(J5/100*(1-1/C12))*100 -> 10 | D50: % | E50: =C50-'Vstupní parametry a výsledky'!C10 -> 0
A51: α z Množství O2 ve spalinách | B51: α | C51: ='Spalovací proces'!J5/('Spalovací proces'!J5-'Vstupní parametry a výsledky'!C10) -> 1.934364303 | D51: [ - ] | E51: ='Vstupní parametry a výsledky'!$C$9-'Spalovací proces'!C51 -> 0
A53: Výkon hořáku
A54: Výhřevnost | B54: H | C54: 9.964 | D54: kWh/m3
A55: Výkon hořáku | B55: PH | C55: =C54*'Vstupní parametry a výsledky'!C15 -> 147.2875601 | D55: kW

Sheet Výpočet trati vzduchu
A1: Vstupní parametry | H1: Výpočet tlaků v jednotlivých uzlech - bez redukce průměru | N1: Výpočet tlaků v jednotlivých uzlech - redukce průměru | T1: Zaškrcení výstupu s korekcí průtoku | AD1: Ztrátový součinitelé trati vzduchu | AY1: Kinematická viskozita vzduchu v závislosti na teplotě | BJ1: Charakteristika filtru
A2: Atmosferický tlak | B2: p7=p0 | C2: ='Vstupní parametry a výsledky'!C3*1000 -> 98580 | D2: Pa | E2: Atmosferický tlak | H2: p6 -> p4 | I2: pk | J2: =C2+C8*((E10^2)/2)*((1/(C5^2))-(1/(C15^2)))+C8*(AE8)*(-E10)*E10/(2*(C5^2)) -> 98717.99593 | K2: Pa | N2: d6 | O2: 40 | P2: mm | Q2: =O2/1000 -> 0.04 | R2: m | T2: Iterace | U2: Průtok | V2: Tlak p5 | W2: Tlak p4 | X2: Tlak p3 | Y2: Tlak p2 | Z2: Tlak p1 | AA2: Ztráta na filtru | AB2: Tlaková diference | AD2: Ztrátový součinitelé | AI2: Konické rozšíření | AY2: t | AZ2: ν·106 | BA2: ν | BJ2: Tlaková ztráta | BL2: Průtok
A3: Průměr potrubí o světlosti DN80 | B3: d1 | C3: 80 | D3: mm | E3: =C3/1000 -> 0.08 | F3: m | H3: p4 -> p3 | I3: p3 | J3: =J2+C8*((E10^2)/2)*((1/(C15^2))-(1/(C5^2)))+C8*AE7*(-E10)*E10/(2*(C5^2)) -> 98527.80464 | K3: Pa | N3: S6 | O3: =PI()*Q2^2/4 -> 0.001256637061 | P3: m2 | T3: i | U3: Qvz | V3: p5 | W3: p4 | X3: p3 | Y3: p2 | Z3: p1 | AA3: Δpz_filtr | AB3: ΔpDmychadla | AD3: ξ1 | AE3: 0.18 | AF3: [ - ] | AG3: Zůžení před dmychadlem | AI3: 2δ [ °] | AJ3: 6 | AK3: 8 | AL3: 10 | AM3: 12 | AN3: 14 | AO3: 16 | AP3: 20 | AQ3: 25 | AR3: 30 | AS3: 40 | AT3: 60 | AU3: 90 | AV3: 180 | AY3: °C | AZ3: m2/s | BA3: m2/s | BC3: takt | BD3: =C9 -> 20 | BE3: °C | BJ3: Δp | BL3: Q(n)Dvz
A4: Průměr potrubí o světlosti DN40 | B4: d2 | C4: 40 | D4: mm | E4: =C4/1000 -> 0.04 | F4: m | H4: p3 -> p2 | I4: p2 | J4: =J3+C8*((E10^2)/2)*((1/C5^2)-(1/C6^2))+C8*(AE4+AE5+AE6)*(-E10)*E10/(2*(C5^2)) -> 95291.26854 | K4: Pa | N4: p6 -> p5 | O4: p5 | P4: =C2+C8*((E10^2)/2)*((1/(O3^2))-(1/(C5^2)))+C8*(AE9)*(-E10)*E10/(2*(O3^2)) -> 100163.4844 | Q4: Pa | T4: [-] | U4: m3/s | V4: Pa | W4: Pa | X4: Pa | Y4: Pa | Z4: Pa | AA4: kPa | AB4: Pa | AD4: ξ2 | AE4: =AP4*(('Výpočet trati vzduchu'!E3^2)/('Výpočet trati vzduchu'!E4^2)-1)^2 -> 3.24 | AF4: [ - ] | AG4: Rozšíření za dmychadlem | AI4: ψ | AJ4: 0.08 | AK4: 0.11 | AL4: 0.15 | AM4: 0.19 | AN4: 0.23 | AO4: 0.27 | AP4: 0.36 | AQ4: 0.5 | AR4: 0.65 | AS4: 0.92 | AT4: 1.15 | AU4: 1.1 | AV4: 1 | AY4: 0 | AZ4: 13.49 | BA4: =AZ4*10^-6 -> 1.349e-05 | BC4: νakt | BD4: =-BC8*BD3^3 +BD8*BD3^2 + BE8*BD3 + BF8 -> 1.532890457e-05 | BE4: m2/s | BJ4: mbar | BK4: kPa | BL4: m3/min | BM4: m3/h
A5: Průtočná plocha potrubí DN80 | B5: S1 | C5: =PI()*E3^2/4 -> 0.005026548246 | D5: m2 | H5: p0 -> p1 | I5: p1 | J5: =(C2-('Výpočet trati vzduchu'!BK22*1000))-C8*(E10^2)/(2*(C6^2))-AE3*C8*(E10^2)/(2*(C6^2)) -> 94611.04294 | K5: Pa | N5: p5 -> p4 | O5: pk | P5: =P4+C8*((E10^2)/2)*((1/(C5^2))-(1/(C15^2)))+C8*(AE8)*(-E10)*E10/(2*(C5^2)) -> 100301.4803 | Q5: Pa | T5: 1 | U5: =E10 -> 0.08453371204 | V5: =P4 -> 100163.4844 | W5: =P5 -> 100301.4803 | X5: =P6 -> 100111.289 | Y5: =P7 -> 96874.75294 | Z5: =P8 -> 94611.04294 | AA5: =BK22 -> 0.8417410122 | AB5: =P9 -> 2263.710003 | AD5: ξ3 | AE5: 1 | AF5: [ - ] | AG5: Ztráta na klapce | AY5: 10 | AZ5: 14.47 | BA5: 1.447e-05 | BJ5: 0 | BK5: =BJ5/10 -> 0 | BL5: 0 | BM5: =BL5*60 -> 0
A6: Průtočná plocha potrubí DN40 | B6: S2 | C6: =PI()*E4^2/4 -> 0.001256637061 | D6: m2 | H6: ΔpDmychadla | I6: p2-p1 | J6: =J4-J5 -> 680.2256035 | K6: Pa | L6: Max 16 kPa pro 300 m3/h | N6: p4 -> p3 | O6: p3 | P6: =P5+C8*((E10^2)/2)*((1/(C15^2))-(1/(C5^2)))+C8*AE7*(-E10)*E10/(2*(C5^2)) -> 100111.289 | Q6: Pa | T6: 2 | U6: =($V$17+$U$17*(AB5/1000))/3600 -> 0.08174304816 | V6: =$C$2+$C$8*((U6^2)/2)*((1/($O$3^2))-(1/($C$5^2)))+$C$8*($AE$9)*(-U6)*U6/(2*($O$3^2)) -> 100060.6608 | W6: =$P$4+$C$8*((U6^2)/2)*((1/($C$5^2))-(1/($C$15^2)))+$C$8*($AE$8)*(-U6)*U6/(2*($C$5^2)) -> 100292.5196 | X6: =$P$5+$C$8*((U6^2)/2)*((1/($C$15^2))-(1/($C$5^2)))+$C$8*$AE$7*(-U6)*U6/(2*($C$5^2)) -> 100123.6391 | Y6: =$P$6+$C$8*((U6^2)/2)*((1/$C$5^2)-(1/$C$6^2))+$C$8*('Výpočet trati vzduchu'!$AE$4+'Výpočet trati vzduchu'!$AE$5+'Výpočet trati vzduchu'!$AE$6)*(-U6)*U6/(2*($C$5^2)) -> 97084.91759 | Z6: =($C$2-('Výpočet trati vzduchu'!$BK$22*1000))-$C$8*(U6^2)/(2*($C$6^2))-'Výpočet trati vzduchu'!$AE$3*$C$8*(U6^2)/(2*($C$6^2)) -> 94814.10888 | AA6: =(0.3723*(U6*60)^2-0.3563*(U6*60)+0.647)/10 -> 0.7855148791 | AB6: =Y6-Z6 -> 2270.808706 | AD6: ξ4 | AE6: 0.3 | AF6: [ - ] | AG6: Ztráta v koleni | AY6: 20 | AZ6: 15.32 | BA6: 1.532e-05 | BC6: Lineární regrese | BJ6: 0.1 | BK6: 0.01 | BL6: 0.355 | BM6: 21.3
A7: Kinemtatická viskozita | B7: ν | C7: =BD4 -> 1.532890457e-05 | D7: m2/s | E7: Pro Takt | N7: p3 -> p2 | O7: p2 | P7: =P6+C8*((E10^2)/2)*((1/C5^2)-(1/C6^2))+C8*('Výpočet trati vzduchu'!AE4+'Výpočet trati vzduchu'!AE5+'Výpočet trati vzduchu'!AE6)*(-E10)*E10/(2*(C5^2)) -> 96874.75294 | Q7: Pa | T7: 3 | U7: =($V$17+$U$17*(AB6/1000))/3600 -> 0.08173429699 | V7: =$C$2+$C$8*((U7^2)/2)*((1/($O$3^2))-(1/($C$5^2)))+$C$8*($AE$9)*(-U7)*U7/(2*($O$3^2)) -> 100060.3437 | W7: =$P$4+$C$8*((U7^2)/2)*((1/($C$5^2))-(1/($C$15^2)))+$C$8*($AE$8)*(-U7)*U7/(2*($C$5^2)) -> 100292.4919 | X7: =$P$5+$C$8*((U7^2)/2)*((1/($C$15^2))-(1/($C$5^2)))+$C$8*$AE$7*(-U7)*U7/(2*($C$5^2)) -> 100123.6772 | Y7: =$P$6+$C$8*((U7^2)/2)*((1/$C$5^2)-(1/$C$6^2))+$C$8*('Výpočet trati vzduchu'!$AE$4+'Výpočet trati vzduchu'!$AE$5+'Výpočet trati vzduchu'!$AE$6)*(-U7)*U7/(2*($C$5^2)) -> 97085.56554 | Z7: =($C$2-('Výpočet trati vzduchu'!$BK$22*1000))-$C$8*(U7^2)/(2*($C$6^2))-'Výpočet trati vzduchu'!$AE$3*$C$8*(U7^2)/(2*($C$6^2)) -> 94814.73495 | AA7: =(0.3723*(U7*60)^2-0.3563*(U7*60)+0.647)/10 -> 0.7853418446 | AB7: =Y7-Z7 -> 2270.830592 | AD7: ξ5 | AE7: 0.15 | AF7: [ - ] | AG7: Kónické rozšíření komory | AI7: Kónické zúžení | AY7: 40 | AZ7: 17.27 | BA7: 1.727e-05 | BC7: k1 | BD7: k2 | BE7: k3 | BF7: k4 | BJ7: 0.475 | BK7: 0.0475 | BL7: 1 | BM7: 60
A8: Hustota | B8: ρ | C8: =C2/(287.1*E9) -> 1.171293472 | D8: kg/m3 | N8: p0 -> p1 | O8: p1 | P8: =(C2-('Výpočet trati vzduchu'!BK22*1000))-C8*(E10^2)/(2*(C6^2))-'Výpočet trati vzduchu'!AE3*C8*(E10^2)/(2*(C6^2)) -> 94611.04294 | Q8: Pa | T8: 4 | U8: =($V$17+$U$17*(AB7/1000))/3600 -> 0.08173427001 | V8: =$C$2+$C$8*((U8^2)/2)*((1/($O$3^2))-(1/($C$5^2)))+$C$8*($AE$9)*(-U8)*U8/(2*($O$3^2)) -> 100060.3428 | W8: =$P$4+$C$8*((U8^2)/2)*((1/($C$5^2))-(1/($C$15^2)))+$C$8*($AE$8)*(-U8)*U8/(2*($C$5^2)) -> 100292.4918 | X8: =$P$5+$C$8*((U8^2)/2)*((1/($C$15^2))-(1/($C$5^2)))+$C$8*$AE$7*(-U8)*U8/(2*($C$5^2)) -> 100123.6773 | Y8: =$P$6+$C$8*((U8^2)/2)*((1/$C$5^2)-(1/$C$6^2))+$C$8*('Výpočet trati vzduchu'!$AE$4+'Výpočet trati vzduchu'!$AE$5+'Výpočet trati vzduchu'!$AE$6)*(-U8)*U8/(2*($C$5^2)) -> 97085.56754 | Z8: =($C$2-('Výpočet trati vzduchu'!$BK$22*1000))-$C$8*(U8^2)/(2*($C$6^2))-'Výpočet trati vzduchu'!$AE$3*$C$8*(U8^2)/(2*($C$6^2)) -> 94814.73688 | AA8: =(0.3723*(U8*60)^2-0.3563*(U8*60)+0.647)/10 -> 0.7853413112 | AB8: =Y8-Z8 -> 2270.83066 | AD8: ξ6 | AE8: 0.16512 | AF8: [ - ] | AG8: Kónické zužení komory | AI8: 2δ [ °] | AJ8: 5 | AK8: 7 | AL8: 10 | AM8: 15 | AN8: 20 | AO8: 30 | AP8: 45 | AQ8: 60 | AR8: 75 | AY8: 60 | AZ8: 19.22 | BA8: 1.922e-05 | BC8: =LINEST(BA4:BA23,AY4:AY23^{1,2,3}) -> -2.245509663e-14 | BD8: 1.012151559e-10 | BE8: 8.824338906e-08 | BF8: 1.352337109e-05 | BJ8: 1.7 | BK8: 0.17 | BL8: 2 | BM8: 120
A9: Aktuální teplota | B9: Takt | C9: ='Vstupní parametry a výsledky'!C2 -> 20 | D9: °C | E9: =C9+273.15 -> 293.15 | F9: K | N9: ΔpDmychadla | O9: p2-p1 | P9: =P7-P8 -> 2263.710003 | Q9: Pa | T9: 5 | U9: =($V$17+$U$17*(AB8/1000))/3600 -> 0.08173426993 | V9: =$C$2+$C$8*((U9^2)/2)*((1/($O$3^2))-(1/($C$5^2)))+$C$8*($AE$9)*(-U9)*U9/(2*($O$3^2)) -> 100060.3428 | W9: =$P$4+$C$8*((U9^2)/2)*((1/($C$5^2))-(1/($C$15^2)))+$C$8*($AE$8)*(-U9)*U9/(2*($C$5^2)) -> 100292.4918 | X9: =$P$5+$C$8*((U9^2)/2)*((1/($C$15^2))-(1/($C$5^2)))+$C$8*$AE$7*(-U9)*U9/(2*($C$5^2)) -> 100123.6773 | Y9: =$P$6+$C$8*((U9^2)/2)*((1/$C$5^2)-(1/$C$6^2))+$C$8*('Výpočet trati vzduchu'!$AE$4+'Výpočet trati vzduchu'!$AE$5+'Výpočet trati vzduchu'!$AE$6)*(-U9)*U9/(2*($C$5^2)) -> 97085.56754 | Z9: =($C$2-('Výpočet trati vzduchu'!$BK$22*1000))-$C$8*(U9^2)/(2*($C$6^2))-'Výpočet trati vzduchu'!$AE$3*$C$8*(U9^2)/(2*($C$6^2)) -> 94814.73688 | AA9: =(0.3723*(U9*60)^2-0.3563*(U9*60)+0.647)/10 -> 0.7853413095 | AB9: =Y9-Z9 -> 2270.83066 | AD9: ξ7 | AE9: 0.34 | AF9: [ - ] | AG9: Zaškrcení výstupu | AI9: ξ | AJ9: 0.06 | AK9: 0.12 | AL9: 0.16 | AM9: 0.18 | AN9: 0.2 | AO9: 0.34 | AP9: 0.36 | AQ9: 0.5 | AR9: 0.65 | AY9: 80 | AZ9: 21.3 | BA9: 2.13e-05 | BJ9: 3.5 | BK9: 0.35 | BL9: 3 | BM9: 180
A10: Maximální průtok vzduchu | B10: Qvz | C10: ='Výkonové křivky - vzduch'!$C$4*'Výkonové křivky - vzduch'!$C$8/'Výkonové křivky - vzduch'!$E$9*E9/C2 -> 304.3213634 | D10: mN3/h | E10: =C10/3600 -> 0.08453371204 | F10: m3/s | AY10: 100 | AZ10: 23.34 | BA10: 2.334e-05 | BJ10: 5.7 | BK10: 0.57 | BL10: 4 | BM10: 240
AY11: 120 | AZ11: 25.73 | BA11: 2.573e-05 | BJ11: 8.5 | BK11: 0.85 | BL11: 5 | BM11: 300
AI12: Koleno | AY12: 140 | AZ12: 27.88 | BA12: 2.788e-05 | BJ12: 11.7 | BK12: 1.17 | BL12: 6 | BM12: 360
T13: Výkonová křivka dmychadla SAP300 pro aktuální parametry vzduchu | AD13: Ztráty třením | AI13: r/D | AJ13: 0.8 | AK13: 1 | AL13: 1.5 | AM13: 2 | AN13: 4 | AO13: 6 | AP13: 10 | AQ13: 20 | AR13: 50 | AY13: 160 | AZ13: 29.98 | BA13: 2.998e-05 | BJ13: 15.5 | BK13: 1.55 | BL13: 7 | BM13: 420
A14: Parametry spalovací komory | T14: 1. bod výkonové křivky | U14: Qmax | V14: ='Výkonové křivky - vzduch'!$C$4*'Výkonové křivky - vzduch'!$C$8/'Výkonové křivky - vzduch'!$E$9*E9/C2 -> 304.3213634 | W14: m3/h | X14: Δp1 | Y14: 0 | Z14: kPa | AD14: vDN80 | AE14: =E10/C5 -> 16.81744766 | AF14: m/s | AI14: ξ pro hydraulicky hladké | AJ14: 0.37 | AK14: 0.21 | AL14: 0.17 | AM14: 0.15 | AN14: 0.11 | AO14: 0.09 | AP14: 0.07 | AQ14: 0.05 | AR14: 0.03 | AY14: 180 | AZ14: 32.51 | BA14: 3.251e-05 | BJ14: 21 | BK14: 2.1 | BL14: 8 | BM14: 480
A15: Průtočná plocha komory | B15: Sk | C15: =0.3*0.4 -> 0.12 | D15: m2 | T15: 2. bod výkonové křivky | U15: Qmin | V15: ='Výkonové křivky - vzduch'!$E$14*'Výkonové křivky - vzduch'!$C$8/'Výkonové křivky - vzduch'!$E$9*E9/C2 -> 233.3130452 | W15: m3/h | X15: Δp2 | Y15: 16 | Z15: kPa | AD15: λ | AE15: =8*(((8/$AE$19)^12)+(1/SQRT(($AE$17+$AE$18)^3)))^(1/12) -> 0.02522152979 | AF15: [ - ] | AI15: ξ pro hydraulicky drsné | AJ15: 0.74 | AK15: 0.42 | AL15: 0.34 | AM15: 0.3 | AN15: 0.22 | AO15: 0.18 | AP15: 0.14 | AQ15: 0.1 | AR15: 0.06 | AY15: 200 | AZ15: 35.19 | BA15: 3.519e-05 | BJ15: 35 | BK15: 3.5 | BL15: 10 | BM15: 600
A16: Rychlost proudění v komoře | B16: vk | C16: =E10/C15 -> 0.7044476004 | D16: m/s | T16: Lineární regrese průtoku v závislosti na tlakové diferenci buňka P9 | U16: Lineární konst. | V16: Abs. hodnota | AD16: k | AE16: 0.00015 | AF16: m | AY16: 250 | AZ16: 40.04 | BA16: 4.004e-05
U17: =LINEST(V14:V15,Y14:Y15) -> -4.438019882 | V17: 304.3213634 | AD17: A | AE17: =(-2.457*LN(1/(((7/$AE$19)^0.9)+(0.27*$AE$16/'Výpočet trati vzduchu'!$E$3))))^16 -> 1.024586189e+20 | AF17: [ - ] | AY17: 300 | AZ17: 48.85 | BA17: 4.885e-05
U18: Qnový | V18: =(V17+U17*(P9/1000))/3600 -> 0.08174304816 | W18: m3/s | AD18: B | AE18: =(37530/AE19)^16 -> 1.249205278e-06 | AF18: [ - ] | AI18: Koleno ostré | AY18: 350 | AZ18: 56.35 | BA18: 5.635e-05 | BJ18: Qmax | BK18: =C10 -> 304.3213634 | BL18: m3/h
AD19: Re | AE19: ='Výpočet trati vzduchu'!AE14*'Výpočet trati vzduchu'!$E$3/'Výpočet trati vzduchu'!$C$7 -> 87768.5556 | AF19: [ - ] | AI19: δ [ °] | AJ19: 10 | AK19: 15 | AL19: 22.5 | AM19: 30 | AN19: 45 | AO19: 60 | AP19: 90 | AY19: 400 | AZ19: 63.83 | BA19: 6.383e-05 | BK19: =BK18/60 -> 5.072022723 | BL19: m3/min
AD20: L | AE20: 1.5 | AF20: m | AI20: ξ pro hydraulicky hladké | AJ20: 0.034 | AK20: 0.042 | AL20: 0.066 | AM20: 0.13 | AN20: 0.236 | AO20: 0.471 | AP20: 1.129 | AY20: 500 | AZ20: 80.27 | BA20: 8.027e-05
AD21: Δpz_tření | AE21: =AE20*AE15/E3*(AE14^2)/2 -> 66.87485768 | AF21: Pa | AG21: Zanedbáno | AI21: ξ pro hydraulicky drsné | AJ21: 0.044 | AK21: 0.062 | AL21: 0.154 | AM21: 0.165 | AN21: 0.32 | AO21: 0.684 | AP21: 1.265 | AY21: 600 | AZ21: 98.25 | BA21: 9.825e-05 | BJ21: Δpz_filtr | BK21: =0.3723*BK19^2-0.3563*BK19+0.647 -> 8.417410122 | BL21: mbar
AY22: 800 | AZ22: 136.9 | BA22: 0.0001369 | BK22: =BK21/10 -> 0.8417410122 | BL22: kPa
AY23: 1000 | AZ23: 180.7 | BA23: 0.0001807

Sheet Výkonové křivky - vzduch
A1: Parametry dmychadla vzduchu
A2: Výkon | B2: Pvz | C2: 2.2 | D2: kW
A3: Tlak | B3: Δpvz | C3: 16 | D3: kPa
A4: Průtok | B4: Qvz | C4: 300 | D4: m3/h
A5: Otáčky | B5: n0 | C5: 2850 | D5: min-1
A7: Parametry při měření dmychadla z charakteristiky
A8: Tlak | B8: pvz | C8: 100000 | D8: Pa
A9: Teplota | B9: tvz | C9: 20 | D9: °C | E9: =C9+273.15 -> 293.15 | F9: K
A11: Přepočtená charakteristika dmychadla
A12: Otáčky | D12: Průtok | F12: Tlak | H12: Výkon | I12: Průtok přepočten na normální parametry
A13: n [min-1] | B13: % | C13: [-] | D13: Qmax [m3/h] | E13: Qmin [m3/h] | F13: Δpvz_max [kPa] | G13: Δpvz_min [kPa] | H13: P [W] | I13: Qmax [mN3/h] | J13: Qmin [mN3/h]
A14: =$C$5*C14 -> 2850 | B14: =C14*100 -> 100 | C14: 1 | D14: =$C$4*A14/$C$5 -> 300 | E14: 230 | F14: =$C$3*(A14/$C$5)^2 -> 16 | G14: 0 | H14: =1000*$C$2*(A14/$C$5)^3 -> 2200 | I14: =D14*$C$8/$E$9*273.15/101325 -> 275.8772884 | J14: =E14*$C$8/$E$9*273.15/101325 -> 211.5059211
A15: 2565 | B15: 90 | C15: 0.9 | D15: 270 | E15: =$E$14*A15/$C$5 -> 207 | F15: 12.96 | G15: 0 | H15: 1603.8 | I15: 248.2895595 | J15: 190.355329
A16: 2280 | B16: 80 | C16: 0.8 | D16: 240 | E16: 184 | F16: 10.24 | G16: 0 | H16: 1126.4 | I16: 220.7018307 | J16: 169.2047369
A17: 1995 | B17: 70 | C17: 0.7 | D17: 210 | E17: 161 | F17: 7.84 | G17: 0 | H17: 754.6 | I17: 193.1141019 | J17: 148.0541448
A18: 1710 | B18: 60 | C18: 0.6 | D18: 180 | E18: 138 | F18: 5.76 | G18: 0 | H18: 475.2 | I18: 165.526373 | J18: 126.9035527
A19: 1425 | B19: 50 | C19: 0.5 | D19: 150 | E19: 115 | F19: 4 | G19: 0 | H19: 275 | I19: 137.9386442 | J19: 105.7529605
A20: 1140 | B20: 40 | C20: 0.4 | D20: 120 | E20: 92 | F20: 2.56 | G20: 0 | H20: 140.8 | I20: 110.3509154 | J20: 84.60236844
A21: 855 | B21: 30 | C21: 0.3 | D21: 90 | E21: 69 | F21: 1.44 | G21: 0 | H21: 59.4 | I21: 82.76318652 | J21: 63.45177633
A22: 570 | B22: 20 | C22: 0.2 | D22: 60 | E22: 46 | F22: 0.64 | G22: 0 | H22: 17.6 | I22: 55.17545768 | J22: 42.30118422
A23: 285 | B23: 10 | C23: 0.1 | D23: 30 | E23: 23 | F23: 0.16 | G23: 0 | H23: 2.2 | I23: 27.58772884 | J23: 21.15059211
A24: 0 | B24: 0 | C24: 0 | D24: 0 | E24: 0 | F24: 0 | G24: 0 | H24: 0 | I24: 0 | J24: 0

Sheet Výpočet trati plynu
A1: Parametry zemního plynu | H1: Výpočet tlaku v místě průtokoměru pro parametry kontrolního testu | P1: Charakteristika potrubí
A2: Hustota | B2: ρZP | C2: 0.73 | D2: kg/m3 | E2: při 0 °C | H2: Tlak před dmychadlem | I2: p2 | J2: =C24+C3*(C19^2)/2*((1/(C12^2))-(1/(C16^2)))-C3*(C13^2)/2*(J10+J11+J9)-C3*(C17^2)/2*(J12)-I23 -> 100268.6466 | K2: Pa | L2: p2rel | M2: =J2-C8 -> 1688.646611 | N2: Pa | P2: Průtok | T2: Rychlosti | V2: Tlak před dmychadlem | W2: p2-p1
B3: ρZP_akt | C3: =C24/(C6*E7) -> 0.6969567513 | D3: kg/m3 | E3: Při takt | H3: p3-p2 | I3: Δpdmych | J3: =(C26-J2) -> 211.3533887 | K3: Pa | L3: Ztráta trati je zantbatelná | P3: Q | T3: v1 | U3: v2 | V3: p2 | W3: Δpz_trati | Y3: Δpdmych
A4: Dynamická vis. | B4: ηZP | C4: =(6.4*(SQRT(1+((C7+208)/35))-1))*10^-6 -> 1.080704175e-05 | D4: kg.m-1.s-1 | H4: p2-p1 | I4: Δpz_trati | J4: =C24-J2 -> 11.35338869 | K4: Pa | P4: % | Q4: [-] | R4: mN3/h | S4: mN3/s | T4: m/s | U4: m/s | V4: Pa | W4: Pa | X4: kPa | Y4: kPa
A5: Kinematická vis. | B5: νZP | C5: =C4/'Výpočet trati plynu'!C3 -> 1.550604356e-05 | D5: m2/s | P5: =100*Q5 -> 100 | Q5: 1 | R5: ='Výkonové křivky - plyn'!C20 -> 29.42691076 | S5: =R5/3600 -> 0.008174141878 | T5: =S5/$C$12 -> 6.504775427 | U5: =S5/$C$16 -> 16.65222509 | V5: =$C$24+$C$2*(S5^2)/2*((1/($C$12^2))-(1/($C$16^2)))-$C$2*(T5^2)/2*($J$10+$J$11+$J$11)-$C$2*(U5^2)/2*($J$12)-(($I$17*$I$22)/$E$11*T5^2/2) -> 100005.7959 | W5: =$C$24-V5 -> 274.2040934 | X5: =W5/1000 -> 0.2742040934 | Y5: =($C$26-V5)/1000 -> 0.4742040934
A6: Plynová konst. | B6: RZP | C6: 508.15 | D6: J·kg-1·K-1 | P6: 90 | Q6: 0.9 | R6: =Q6*$R$5 -> 26.48421969 | S6: 0.00735672769 | T6: =S6/$C$12 -> 5.854297885 | U6: =S6/$C$16 -> 14.98700258 | V6: =$C$24+$C$2*(S6^2)/2*((1/($C$12^2))-(1/($C$16^2)))-$C$2*(T6^2)/2*($J$10+$J$11+$J$11)-$C$2*(U6^2)/2*($J$12)-(($I$17*$I$22)/$E$11*T6^2/2) -> 100057.8947 | W6: 222.1053157 | X6: =W6/1000 -> 0.2221053157 | Y6: 0.4221053157
A7: Teplota | B7: TZP_akt | C7: 10 | D7: °C | E7: =C7+273.15 -> 283.15 | F7: K | H7: Ztráty | P7: 80 | Q7: 0.8 | R7: =Q7*$R$5 -> 23.54152861 | S7: 0.006539313503 | T7: 5.203820342 | U7: 13.32178007 | V7: 100104.5094 | W7: 175.4906198 | X7: 0.1754906198 | Y7: 0.3754906198
A8: Atmosferický tlak | B8: patm | C8: 98580 | D8: Pa | H8: Ztrátové koeficienty | I8: Označení | J8: Hodnota | P8: 70 | Q8: 0.7 | R8: 20.59883753 | S8: 0.005721899315 | T8: 4.553342799 | U8: 11.65655757 | V8: 100145.64 | W8: 134.3600058 | X8: 0.1343600058 | Y8: 0.3343600058
H9: Koleno 1 | I9: ξk1 | J9: 0.15 | P9: 60 | Q9: 0.6 | R9: 17.65614646 | S9: 0.004904485127 | T9: 3.902865256 | U9: 9.991335056 | V9: 100181.2865 | W9: 98.71347364 | X9: 0.09871347364 | Y9: 0.2987134736
A10: Parametry trati | H10: Koleno 2 | I10: ξk2 | J10: 0.17 | P10: 50 | Q10: 0.5 | R10: 14.71345538 | S10: 0.004087070939 | T10: 3.252387714 | U10: 8.326112547 | V10: 100211.449 | W10: 68.55102336 | X10: 0.06855102336 | Y10: 0.2685510234
A11: Světlost potrubí | B11: D1 | C11: 40 | D11: mm | E11: =C11/1000 -> 0.04 | F11: m | H11: Koleno 3 | I11: ξk3 | J11: 0.15 | P11: 40 | Q11: 0.4 | R11: 11.7707643 | S11: 0.003269656751 | T11: 2.601910171 | U11: 6.660890037 | V11: 100236.1273 | W11: 43.87265495 | X11: 0.04387265495 | Y11: 0.243872655
A12: Průtočný průřez | B12: S1 | C12: =PI()*E11^2/4 -> 0.001256637061 | D12: m2 | H12: Zúžení | I12: ξz | J12: =((1/J13)-1)^2 -> 0.3431021418 | P12: 30 | Q12: 0.3 | R12: 8.828073228 | S12: 0.002452242563 | T12: 1.951432628 | U12: 4.995667528 | V12: 100255.3216 | W12: 24.67836841 | X12: 0.02467836841 | Y12: 0.2246783684
A13: Rychlost proudění | B13: v1 | C13: =$C$19/C12 -> 1.337785716 | D13: m/s | I13: ε | J13: =0.57+0.043/(1.1-J14) -> 0.6306167401 | P13: 20 | Q13: 0.2 | R13: 5.885382152 | S13: 0.001634828376 | T13: 1.300955085 | U13: 3.330445019 | V13: 100269.0318 | W13: 10.96816374 | X13: 0.01096816374 | Y13: 0.2109681637
I14: n | J14: ='Výpočet trati plynu'!C16/'Výpočet trati plynu'!C12 -> 0.390625 | P14: 10 | Q14: 0.1 | R14: 2.942691076 | S14: 0.0008174141878 | T14: 0.6504775427 | U14: 1.665222509 | V14: 100277.258 | W14: 2.742040934 | X14: 0.002742040934 | Y14: 0.2027420409
A15: Světlost potrubí | B15: D2 | C15: 25 | D15: mm | E15: =C15/1000 -> 0.025 | F15: m | P15: 0 | Q15: 0 | R15: 0 | S15: 0 | T15: 0 | U15: 0 | V15: 100280 | W15: =$C$24-V15 -> 0 | X15: =W15/1000 -> 0 | Y15: 0.2
A16: Průtočný průřez | B16: S2 | C16: =PI()*E15^2/4 -> 0.0004908738521 | D16: m2 | H16: Ztráty třením
A17: Rychlost proudění | B17: v2 | C17: =$C$19/C16 -> 3.424731433 | D17: m/s | H17: Lambda | I17: =8*(((8/$I$21)^12)+(1/SQRT(($I$19+$I$20)^3)))^(1/12) -> 0.04614900954
H18: k | I18: 0.00015 | J18: m
A19: Průtok | B19: Q | C19: =C32 -> 0.001681111111 | D19: m3/s | E19: Při kontrolním testu 2 | H19: A | I19: =(-2.457*LN(1/(((7/$I$21)^0.9)+(0.27*$I$18/'Výpočet trati plynu'!E11))))^16 -> 7.772275819e+17
H20: B | I20: =(37530/I21)^16 -> 3.827615393e+16
H21: Re | I21: ='Výpočet trati plynu'!C13*'Výpočet trati plynu'!E11/'Výpočet trati plynu'!$C$5 -> 3451.004663
A22: Měřené parametry - Kontrolní test 2 | H22: L | I22: 6 | J22: m
A23: Tlak p1 | B23: p1_rel | C23: 1.7 | D23: kPa | E23: =C23*1000 -> 1700 | F23: Pa | H23: Δpz_tření | I23: =(I17*I22)/E11*C13^2/2 -> 6.194364496 | J23: Pa
B24: p1_abs | C24: =C8+E23 -> 100280 | D24: Pa
A25: Tlak p3 | B25: p3_rel | C25: 1.9 | D25: kPa | E25: =C25*1000 -> 1900 | F25: Pa
B26: p3_abs | C26: =C8+E25 -> 100480 | D26: Pa
A28: Spotřeba | C28: Rozdíl
A29: Start | B29: 46990.687 | C29: =B30-B29 -> 3.026 | D29: m3
A30: End | B30: 46993.713
A31: Délka testu | B31: t | C31: 30 | D31: min
A32: Průtok | B32: Q | C32: =C29/(C31*60) -> 0.001681111111 | D32: m3/s
A33: Otevření PV | B33: 20 | C33: %
A35: Stanovení průtoku při úplném otevření ventilu
A36: Průtok | C36: Otevření ventilu
A37: =C32*3600 -> 6.052 | B37: m3/h | C37: 20 | D37: %
A38: =C38/C37*A37 -> 30.26 | B38: m3/h | C38: 100 | D38: %

Sheet Výkonové křivky - plyn
A1: Parametry dmychadla plynu
A2: Výkon | B2: Pvz | C2: 0.37 | D2: kW
A3: Průtok | B3: Q1vz | C3: 32 | D3: m3/h
B4: Q2vz | C4: 16 | D4: m3/h
B5: Q3vz | C5: 9.4 | D5: m3/h
B6: Q4vz | C6: 0 | D6: m3/h
A7: Tlak vzduchu | B7: Δp1vz | C7: 0 | D7: kPa
B8: Δp2vz | C8: 10 | D8: kPa
B9: Δp3vz | C9: 15 | D9: kPa
B10: Δp4vz | C10: 23 | D10: kPa
A11: Otáčky | B11: n | C11: 2850 | D11: min-1
A12: Frekvence | B12: f | C12: 50 | D12: Hz
A14: Parametry při měření
A15: Tlak | B15: p1 | C15: 100000 | D15: Pa
A16: Teplota | B16: T1 | C16: 20 | D16: °C | E16: =C16+273.15 -> 293.15 | F16: K
A17: Hustota vzduchu | B17: rho | C17: =C15/(287.1*E16) -> 1.188165421 | D17: kg/m3
A19: Přepočet parametrů na zemní plyn
A20: Průtok | B20: Q1plyn | C20: =$C$15*C3/$E$16*273.15/101325 -> 29.42691076 | D20: mN3/h
B21: Q2plyn | C21: =$C$15*C4/$E$16*273.15/101325 -> 14.71345538 | D21: mN3/h
B22: Q3plyn | C22: =$C$15*C5/$E$16*273.15/101325 -> 8.644155036 | D22: mN3/h
B23: Q4plyn | C23: =$C$15*C6/$E$16*273.15/101325 -> 0 | D23: mN3/h
A24: Tlak plynu | B24: Δp1plyn | C24: 0 | D24: kPa
B25: Δp2plyn | C25: 6.143925645 | D25: kPa
B26: Δp3plyn | C26: 9.215888468 | D26: kPa
B27: Δp4plyn | C27: 14.13102898 | D27: kPa
A29: Afinní vztahy
A30: Otáčky | E30: Průtok | J30: Tlak
A31: n | E31: Q1plyn | F31: Q2plyn | G31: Q3plyn | H31: Q4plyn | J31: Δp1plyn | K31: Δp2plyn | L31: Δp3plyn | M31: Δp4plyn
A32: min-1 | B32: % | C32: [-] | D32: Hz | E32: mN3/h | F32: mN3/h | G32: mN3/h | H32: mN3/h | J32: kPa | K32: kPa | L32: kPa | M32: kPa
A33: =$C$11*C33 -> 2850 | B33: =C33*100 -> 100 | C33: 1 | D33: =$C$12*C33 -> 50 | E33: =$C$20*A33/$C$11 -> 29.42691076 | F33: =$C$21*A33/$C$11 -> 14.71345538 | G33: =$C$22*A33/$C$11 -> 8.644155036 | H33: =$C$23*A33/$C$11 -> 0 | J33: =$C$24*(A33/$C$11)^2 -> 0 | K33: =$C$25*(A33/$C$11)^2 -> 6.143925645 | L33: =$C$26*(A33/$C$11)^2 -> 9.215888468 | M33: =$C$27*(A33/$C$11)^2 -> 14.13102898
A34: 2565 | B34: 90 | C34: 0.9 | D34: 45 | E34: 26.48421969 | F34: 13.24210984 | G34: 7.779739533 | H34: 0 | J34: 0 | K34: 4.976579772 | L34: 7.464869659 | M34: 11.44613348
A35: 2280 | B35: 80 | C35: 0.8 | D35: 40 | E35: 23.54152861 | F35: 11.7707643 | G35: 6.915324029 | H35: 0 | J35: 0 | K35: 3.932112413 | L35: 5.898168619 | M35: 9.043858549
A36: 1995 | B36: 70 | C36: 0.7 | D36: 35 | E36: 20.59883753 | F36: 10.29941877 | G36: 6.050908525 | H36: 0 | J36: 0 | K36: 3.010523566 | L36: 4.515785349 | M36: 6.924204202
A37: 1710 | B37: 60 | C37: 0.6 | D37: 30 | E37: 17.65614646 | F37: 8.828073228 | G37: 5.186493022 | H37: 0 | J37: 0 | K37: 2.211813232 | L37: 3.317719848 | M37: 5.087170434
A38: 1425 | B38: 50 | C38: 0.5 | D38: 25 | E38: 14.71345538 | F38: 7.35672769 | G38: 4.322077518 | H38: 0 | J38: 0 | K38: 1.535981411 | L38: 2.303972117 | M38: 3.532757246
A39: 1140 | B39: 40 | C39: 0.4 | D39: 20 | E39: 11.7707643 | F39: 5.885382152 | G39: 3.457662014 | H39: 0 | J39: 0 | K39: 0.9830281032 | L39: 1.474542155 | M39: 2.260964637
A40: 855 | B40: 30 | C40: 0.3 | D40: 15 | E40: 8.828073228 | F40: 4.414036614 | G40: 2.593246511 | H40: 0 | J40: 0 | K40: 0.552953308 | L40: 0.8294299621 | M40: 1.271792609
A41: 741 | B41: 26 | C41: =D41/D33 -> 0.26 | D41: 13 | E41: 7.650996798 | F41: 3.825498399 | G41: 2.247480309 | H41: 0 | J41: 0 | K41: 0.4153293736 | L41: 0.6229940604 | M41: 0.9552575593
A42: 570 | B42: 20 | C42: 0.2 | D42: =$C$12*C42 -> 10 | E42: 5.885382152 | F42: 2.942691076 | G42: 1.728831007 | H42: 0 | J42: 0 | K42: 0.2457570258 | L42: 0.3686355387 | M42: 0.5652411593
A43: 285 | B43: 10 | C43: 0.1 | D43: =$C$12*C43 -> 5 | E43: 2.942691076 | F43: 1.471345538 | G43: 0.8644155036 | H43: 0 | J43: 0 | K43: 0.06143925645 | L43: 0.09215888468 | M43: 0.1413102898
A44: 85.5 | B44: 3 | C44: =D44/D33 -> 0.03 | D44: 1.5 | E44: 0.8828073228 | F44: 0.4414036614 | G44: 0.2593246511 | H44: 0 | J44: 0 | K44: 0.005529533081 | L44: 0.008294299621 | M44: 0.01271792609
